Workbook

Sheet Fig
J3: Parameters
J5: Radius of MT | K5: 10
J7: Protofilament number | K7: 13
J9: Tub axial pitch | K9: 4.1
J11: Rotation angle (rad) | K11: =PI()/10*19 -> 5.969026042
J13: Tilting angle (rad) | K13: 1
J15: Helix start number | K15: 3
J17: Run the macro DrawMT or Shift_Ctrl+D

Sheet Data
A1: 1 | B1: 2 | C1: 3 | D1: 4 | E1: 5 | F1: 6 | G1: 7 | H1: 8 | K1: 11 | L1: 12 | M1: 13 | N1: 14 | O1: 15 | P1: 16 | Q1: 17 | R1: 18 | S1: 19 | V1: 7 | W1: 8 | X1: 11
C2: Absolute coordinates | G2: Y-Tilting | V2: Y-Tilting
A3: zz | B3: r | C3: x | D3: y | E3: z | G3: X | H3: Y | K3: Z | S3: Time | V3: X | W3: Y | X3: Z
A4: =$S$10+0 -> 0 | B4: =Fig!K5 -> 10 | C4: =IF(A4<$B$7,$B$4*COS($B$13+A4/$B$7*2*PI()),"") -> 9.510565163 | D4: =IF(A4<$B$7,$B$4*SIN($B$13+A4/$B$7*2*PI()),"") -> -3.090169944 | E4: =IF(A4<$B$7,$B$10*$B$19/$B$7*A4,"") -> 0 | G4: =IF(C4<>"",C4,"") -> 9.510565163 | H4: =IF(D4<>"",E4*SIN($B$16)+D4*COS($B$16),"") -> -1.669625946 | K4: =IF(E4<>"",E4*COS($B$16)-D4*SIN($B$16),"") -> 2.600288346 | S4: 0 | U4: 0 | V4: 9.510565163 | W4: -1.669625946 | X4: 2.600288346
A5: =$S$10+1 -> 1 | B5: 11 | C5: =IF(A5<$B$7,$B$4*COS($B$13+A5/$B$7*2*PI()),"") -> 9.857260809 | D5: =IF(A5<$B$7,$B$4*SIN($B$13+A5/$B$7*2*PI()),"") -> 1.683570413 | E5: =IF(A5<$B$7,$B$10*$B$19/$B$7*A5,"") -> 0.9461538462 | G5: =IF(C5<>"",C5,"") -> 9.857260809 | H5: =IF(D5<>"",E5*SIN($B$16)+D5*COS($B$16),"") -> 1.705797985 | K5: =IF(E5<>"",E5*COS($B$16)-D5*SIN($B$16),"") -> -0.905466549 | S5: dRotation | U5: 1 | V5: 9.857260809 | W5: 1.705797985 | X5: -0.905466549
A6: =$S$10+2 -> 2 | B6: pfn | C6: 7.945776797 | D6: 6.071625078 | E6: 1.892307692 | G6: 7.945776797 | H6: 4.872835048 | K6: -4.086678124 | S6: =Fig!K11 -> 5.969026042 | U6: 2 | V6: 9.510565163 | W6: 1.780405092 | X6: 4.8155278
A7: =$S$10+3 -> 3 | B7: =Fig!K7 -> 13 | C7: 4.214011078 | D7: 9.068743609 | E7: 2.838461538 | G7: 4.214011078 | H7: 7.288346109 | K7: -6.097457301 | S7: dTilting | V7: -1.921267174 | W7: 2.659244666 | X7: 13.37003591
A8: =$S$10+4 -> 4 | B8: 13 | C8: -0.4831337953 | D8: 9.988322268 | E8: 3.784615385 | G8: -0.4831337953 | H8: 8.581357588 | K8: -6.360046957 | S8: =Fig!K13 -> 1 | V8: -6.261851975 | W8: 2.952850565 | X8: 11.16161541
A9: =$S$10+5 -> 5 | B9: Tub p | C9: -5.069598538 | D9: 8.619696669 | E9: 4.730769231 | G9: -5.069598538 | H9: 8.63804703 | K9: -4.697179121 | S9: Z-offset | V9: 2.859456784 | W9: 3.580346785 | X9: 13.68666077
A10: =$S$10+6 -> 6 | B10: =Fig!K9 -> 4.1 | C10: -8.494679351 | D10: 5.276402441 | E10: 5.676923077 | G10: -8.494679351 | H10: 7.627818458 | K10: -1.37268493 | S10: 0 | V10: -9.167921953 | W10: 4.211512016 | X10: 7.450209933
A11: =$S$10+7 -> 7 | B11: 4 | C11: -9.973731497 | D11: 0.7243480016 | E11: 6.623076923 | G11: -9.973731497 | H11: 5.964493956 | K11: 2.968945907 | S11: n | V11: 7.945776797 | W11: 4.872835048 | X11: -4.086678124
A12: =$S$10+8 -> 8 | B12: Rotation | C12: -9.167921953 | D12: -3.993645836 | E12: 7.569230769 | G12: -9.167921953 | H12: 4.211512016 | K12: 7.450209933 | S12: 18 | V12: 9.857260809 | W12: 5.155829023 | X12: 1.309772905
A13: =$S$10+9 -> 9 | B13: =Fig!K11 -> 5.969026042 | C13: -6.261851975 | D13: -7.796743541 | E13: 8.515384615 | G13: -6.261851975 | H13: 2.952850565 | K13: 11.16161541 | V13: 9.510565163 | W13: 5.230436129 | X13: 7.030767254
A14: =$S$10+10 -> 10 | B14: 1.5 | C14: -1.921267174 | D14: -9.813701261 | E14: 9.461538462 | G14: -1.921267174 | H14: 2.659244666 | K14: 13.37003591 | V14: 6.985113652 | W14: 5.687534419 | X14: 12.15606688
A15: =$S$10+11 -> 11 | B15: Tilting Y | C15: 2.859456784 | D15: -9.582458291 | E15: 10.40769231 | G15: 2.859456784 | H15: 3.580346785 | K15: 13.68666077 | V15: -9.973731497 | W15: 5.964493956 | X15: 2.968945907
A16: =$S$10+12 -> 12 | B16: =Fig!K13 -> 1 | C16: 6.985113652 | D16: -7.155989607 | E16: 11.35384615 | G16: 6.985113652 | H16: 5.687534419 | K16: 12.15606688 | V16: -1.921267174 | W16: 6.109275704 | X16: 15.58527537
A17: =$S$10+13 -> 13 | B17: 0 | V17: -6.261851975 | W17: 6.402881603 | X17: 13.37685486
A18: =$S$10+14 -> 14 | B18: Helix start | V18: 2.859456784 | W18: 7.030377823 | X18: 15.90190022
A19: =$S$10+13 -> 13 | B19: =Fig!K15 -> 3 | V19: 4.214011078 | W19: 7.288346109 | X19: -6.097457301
A20: =$S$10+14 -> 14 | B20: 3 | V20: -8.494679351 | W20: 7.627818458 | X20: -1.37268493
A21: =$S$10+13 -> 13 | G21: =IF(C21<>"",C21-E21*SIN($B$13),"") ->  | H21: =IF(D21<>"",D21-E21*SIN($B$16),"") ->  | K21: =IF(E21<>"",E21*COS(J21),"") ->  | V21: -9.167921953 | W21: 7.661543054 | X21: 9.665449387
A22: =$S$10+14 -> 14 | C22: =C4 -> 9.510565163 | D22: =D4 -> -3.090169944 | E22: =IF(D22<>"",E4+$B$10,"") -> 4.1 | G22: =IF(C22<>"",C22,"") -> 9.510565163 | H22: =IF(D22<>"",E22*SIN($B$16)+D22*COS($B$16),"") -> 1.780405092 | K22: =IF(E22<>"",E22*COS($B$16)-D22*SIN($B$16),"") -> 4.8155278 | V22: 7.945776797 | W22: 8.322866085 | X22: -1.87143867
A23: =$S$10+13 -> 13 | C23: =C5 -> 9.857260809 | D23: 1.683570413 | E23: =IF(D23<>"",E5+$B$10,"") -> 5.046153846 | G23: =IF(C23<>"",C23,"") -> 9.857260809 | H23: =IF(D23<>"",E23*SIN($B$16)+D23*COS($B$16),"") -> 5.155829023 | K23: =IF(E23<>"",E23*COS($B$16)-D23*SIN($B$16),"") -> 1.309772905 | V23: -0.4831337953 | W23: 8.581357588 | X23: -6.360046957
A24: =$S$10+14 -> 14 | C24: =C6 -> 7.945776797 | D24: 6.071625078 | E24: 5.992307692 | G24: 7.945776797 | H24: 8.322866085 | K24: -1.87143867 | V24: 9.857260809 | W24: 8.605860061 | X24: 3.525012359
A25: =$S$10+13 -> 13 | C25: =C7 -> 4.214011078 | D25: 9.068743609 | E25: 6.938461538 | G25: 4.214011078 | H25: 10.73837715 | K25: -3.882217847 | V25: -5.069598538 | W25: 8.63804703 | X25: -4.697179121
A26: =$S$10+14 -> 14 | C26: =C8 -> -0.4831337953 | D26: 9.988322268 | E26: 7.884615385 | G26: -0.4831337953 | H26: 12.03138863 | K26: -4.144807503 | V26: 9.510565163 | W26: 8.680467167 | X26: 9.246006708
A27: =$S$10+13 -> 13 | C27: =C9 -> -5.069598538 | D27: 8.619696669 | E27: 8.830769231 | G27: -5.069598538 | H27: 12.08807807 | K27: -2.481939667 | V27: 6.985113652 | W27: 9.137565456 | X27: 14.37130633
A28: =$S$10+14 -> 14 | C28: =C10 -> -8.494679351 | D28: 5.276402441 | E28: 9.776923077 | G28: -8.494679351 | H28: 11.0778495 | K28: 0.8425545244 | V28: -9.973731497 | W28: 9.414524994 | X28: 5.184185361
A29: =$S$10+13 -> 13 | C29: =C11 -> -9.973731497 | D29: 0.7243480016 | E29: 10.72307692 | G29: -9.973731497 | H29: 9.414524994 | K29: 5.184185361 | V29: -1.921267174 | W29: 9.559306742 | X29: 17.80051482
A30: =$S$10+14 -> 14 | C30: =C12 -> -9.167921953 | D30: -3.993645836 | E30: 11.66923077 | G30: -9.167921953 | H30: 7.661543054 | K30: 9.665449387 | V30: -6.261851975 | W30: 9.85291264 | X30: 15.59209432
A31: =$S$10+13 -> 13 | C31: =C13 -> -6.261851975 | D31: -7.796743541 | E31: 12.61538462 | G31: -6.261851975 | H31: 6.402881603 | K31: 13.37685486 | V31: 2.859456784 | W31: 10.48040886 | X31: 18.11713968
A32: =$S$10+14 -> 14 | C32: =C14 -> -1.921267174 | D32: -9.813701261 | E32: 13.56153846 | G32: -1.921267174 | H32: 6.109275704 | K32: 15.58527537 | V32: 4.214011078 | W32: 10.73837715 | X32: -3.882217847
A33: =$S$10+13 -> 13 | C33: =C15 -> 2.859456784 | D33: -9.582458291 | E33: 14.50769231 | G33: 2.859456784 | H33: 7.030377823 | K33: 15.90190022 | V33: -8.494679351 | W33: 11.0778495 | X33: 0.8425545244
A34: =$S$10+14 -> 14 | C34: =C16 -> 6.985113652 | D34: -7.155989607 | E34: 15.45384615 | G34: 6.985113652 | H34: 9.137565456 | K34: 14.37130633 | V34: -9.167921953 | W34: 11.11157409 | X34: 11.88068884
A35: =$S$10+13 -> 13 | C35: =C17 ->  | V35: 7.945776797 | W35: 11.77289712 | X35: 0.3438007838
A36: =$S$10+14 -> 14 | C36: =C18 ->  | V36: -0.4831337953 | W36: 12.03138863 | X36: -4.144807503
A37: =$S$10+13 -> 13 | C37: =C19 ->  | V37: 9.857260809 | W37: 12.0558911 | X37: 5.740251813
A38: =$S$10+14 -> 14 | C38: =C20 ->  | V38: -5.069598538 | W38: 12.08807807 | X38: -2.481939667
A39: =$S$10+13 -> 13 | V39: 9.510565163 | W39: 12.1304982 | X39: 11.46124616
A40: =$S$10+14 -> 14 | C40: =C22 -> 9.510565163 | D40: =D22 -> -3.090169944 | E40: =IF(D40<>"",E22+$B$10,"") -> 8.2 | G40: =IF(C40<>"",C40,"") -> 9.510565163 | H40: =IF(D40<>"",E40*SIN($B$16)+D40*COS($B$16),"") -> 5.230436129 | K40: =IF(E40<>"",E40*COS($B$16)-D40*SIN($B$16),"") -> 7.030767254 | V40: 6.985113652 | W40: 12.58759649 | X40: 16.58654579
A41: =$S$10+13 -> 13 | C41: =C23 -> 9.857260809 | D41: 1.683570413 | E41: =IF(D41<>"",E23+$B$10,"") -> 9.146153846 | G41: =IF(C41<>"",C41,"") -> 9.857260809 | H41: =IF(D41<>"",E41*SIN($B$16)+D41*COS($B$16),"") -> 8.605860061 | K41: =IF(E41<>"",E41*COS($B$16)-D41*SIN($B$16),"") -> 3.525012359 | V41: -9.973731497 | W41: 12.86455603 | X41: 7.399424815
A42: =$S$10+14 -> 14 | C42: =C24 -> 7.945776797 | D42: 6.071625078 | E42: 10.09230769 | G42: 7.945776797 | H42: 11.77289712 | K42: 0.3438007838 | V42: -1.921267174 | W42: 13.00933778 | X42: 20.01575428
A43: =$S$10+13 -> 13 | C43: =C25 -> 4.214011078 | D43: 9.068743609 | E43: 11.03846154 | G43: 4.214011078 | H43: 14.18840818 | K43: -1.666978393 | V43: -6.261851975 | W43: 13.30294368 | X43: 17.80733377
A44: =$S$10+14 -> 14 | C44: =C26 -> -0.4831337953 | D44: 9.988322268 | E44: 11.98461538 | G44: -0.4831337953 | H44: 15.48141966 | K44: -1.929568048 | V44: 2.859456784 | W44: 13.9304399 | X44: 20.33237913
A45: =$S$10+13 -> 13 | C45: =C27 -> -5.069598538 | D45: 8.619696669 | E45: 12.93076923 | G45: -5.069598538 | H45: 15.5381091 | K45: -0.2667002126 | V45: 4.214011078 | W45: 14.18840818 | X45: -1.666978393
A46: =$S$10+14 -> 14 | C46: =C28 -> -8.494679351 | D46: 5.276402441 | E46: 13.87692308 | G46: -8.494679351 | H46: 14.52788053 | K46: 3.057793978 | V46: -8.494679351 | W46: 14.52788053 | X46: 3.057793978
A47: =$S$10+13 -> 13 | C47: =C29 -> -9.973731497 | D47: 0.7243480016 | E47: 14.82307692 | G47: -9.973731497 | H47: 12.86455603 | K47: 7.399424815 | V47: -9.167921953 | W47: 14.56160513 | X47: 14.09592829
A48: =$S$10+14 -> 14 | C48: =C30 -> -9.167921953 | D48: -3.993645836 | E48: 15.76923077 | G48: -9.167921953 | H48: 11.11157409 | K48: 11.88068884 | V48: 7.945776797 | W48: 15.22292816 | X48: 2.559040238
A49: =$S$10+13 -> 13 | C49: =C31 -> -6.261851975 | D49: -7.796743541 | E49: 16.71538462 | G49: -6.261851975 | H49: 9.85291264 | K49: 15.59209432 | V49: -0.4831337953 | W49: 15.48141966 | X49: -1.929568048
A50: =$S$10+14 -> 14 | C50: =C32 -> -1.921267174 | D50: -9.813701261 | E50: 17.66153846 | G50: -1.921267174 | H50: 9.559306742 | K50: 17.80051482 | V50: 9.857260809 | W50: 15.50592214 | X50: 7.955491267
A51: =$S$10+13 -> 13 | C51: =C33 -> 2.859456784 | D51: -9.582458291 | E51: 18.60769231 | G51: 2.859456784 | H51: 10.48040886 | K51: 18.11713968 | V51: -5.069598538 | W51: 15.5381091 | X51: -0.2667002126
A52: =$S$10+14 -> 14 | C52: =C34 -> 6.985113652 | D52: -7.155989607 | E52: 19.55384615 | G52: 6.985113652 | H52: 12.58759649 | K52: 16.58654579 | V52: 9.510565163 | W52: 15.58052924 | X52: 13.67648562
A53: =$S$10+13 -> 13 | C53: =C35 ->  | V53: 6.985113652 | W53: 16.03762753 | X53: 18.80178524
A54: =$S$10+14 -> 14 | C54: =C36 ->  | V54: -9.973731497 | W54: 16.31458707 | X54: 9.614664269
A55: =$S$10+13 -> 13 | C55: =C37 ->  | V55: -1.921267174 | W55: 16.45936882 | X55: 22.23099373
A56: =$S$10+14 -> 14 | C56: =C38 ->  | V56: -6.261851975 | W56: 16.75297472 | X56: 20.02257322
A57: =$S$10+13 -> 13 | V57: 2.859456784 | W57: 17.38047094 | X57: 22.54761858
A58: =$S$10+14 -> 14 | C58: =C40 -> 9.510565163 | D58: =D40 -> -3.090169944 | E58: =IF(D58<>"",E40+$B$10,"") -> 12.3 | G58: =IF(C58<>"",C58,"") -> 9.510565163 | H58: =IF(D58<>"",E58*SIN($B$16)+D58*COS($B$16),"") -> 8.680467167 | K58: =IF(E58<>"",E58*COS($B$16)-D58*SIN($B$16),"") -> 9.246006708 | V58: 4.214011078 | W58: 17.63843922 | X58: 0.5482610613
A59: =$S$10+13 -> 13 | C59: =C41 -> 9.857260809 | D59: 1.683570413 | E59: =IF(D59<>"",E41+$B$10,"") -> 13.24615385 | G59: =IF(C59<>"",C59,"") -> 9.857260809 | H59: =IF(D59<>"",E59*SIN($B$16)+D59*COS($B$16),"") -> 12.0558911 | K59: =IF(E59<>"",E59*COS($B$16)-D59*SIN($B$16),"") -> 5.740251813 | V59: -8.494679351 | W59: 17.97791157 | X59: 5.273033433
A60: =$S$10+14 -> 14 | C60: =C42 -> 7.945776797 | D60: 6.071625078 | E60: 14.19230769 | G60: 7.945776797 | H60: 15.22292816 | K60: 2.559040238 | V60: -9.167921953 | W60: 18.01163617 | X60: 16.31116775
A61: =$S$10+13 -> 13 | C61: =C43 -> 4.214011078 | D61: 9.068743609 | E61: 15.13846154 | G61: 4.214011078 | H61: 17.63843922 | K61: 0.5482610613 | V61: 7.945776797 | W61: 18.6729592 | X61: 4.774279692
A62: =$S$10+14 -> 14 | C62: =C44 -> -0.4831337953 | D62: 9.988322268 | E62: 16.08461538 | G62: -0.4831337953 | H62: 18.9314507 | K62: 0.2856714056 | V62: -0.4831337953 | W62: 18.9314507 | X62: 0.2856714056
A63: =$S$10+13 -> 13 | C63: =C45 -> -5.069598538 | D63: 8.619696669 | E63: 17.03076923 | G63: -5.069598538 | H63: 18.98814014 | K63: 1.948539241 | V63: 9.857260809 | W63: 18.95595317 | X63: 10.17073072
A64: =$S$10+14 -> 14 | C64: =C46 -> -8.494679351 | D64: 5.276402441 | E64: 17.97692308 | G64: -8.494679351 | H64: 17.97791157 | K64: 5.273033433 | V64: -5.069598538 | W64: 18.98814014 | X64: 1.948539241
A65: =$S$10+13 -> 13 | C65: =C47 -> -9.973731497 | D65: 0.7243480016 | E65: 18.92307692 | G65: -9.973731497 | H65: 16.31458707 | K65: 9.614664269 | V65: 6.985113652 | W65: 19.48765857 | X65: 21.0170247
A66: =$S$10+14 -> 14 | C66: =C48 -> -9.167921953 | D66: -3.993645836 | E66: 19.86923077 | G66: -9.167921953 | H66: 14.56160513 | K66: 14.09592829 | V66: -9.973731497 | W66: 19.76461811 | X66: 11.82990372
A67: =$S$10+13 -> 13 | C67: =C49 -> -6.261851975 | D67: -7.796743541 | E67: 20.81538462 | G67: -6.261851975 | H67: 13.30294368 | K67: 17.80733377 | V67: -1.921267174 | W67: 19.90939985 | X67: 24.44623318
A68: =$S$10+14 -> 14 | C68: =C50 -> -1.921267174 | D68: -9.813701261 | E68: 21.76153846 | G68: -1.921267174 | H68: 13.00933778 | K68: 20.01575428 | V68: -6.261851975 | W68: 20.20300575 | X68: 22.23781268
A69: =$S$10+13 -> 13 | C69: =C51 -> 2.859456784 | D69: -9.582458291 | E69: 22.70769231 | G69: 2.859456784 | H69: 13.9304399 | K69: 20.33237913 | V69: 2.859456784 | W69: 20.83050197 | X69: 24.76285804
A70: =$S$10+14 -> 14 | C70: =C52 -> 6.985113652 | D70: -7.155989607 | E70: 23.65384615 | G70: 6.985113652 | H70: 16.03762753 | K70: 18.80178524 | V70: 4.214011078 | W70: 21.08847026 | X70: 2.763500515
A71: =$S$10+13 -> 13 | C71: =C53 ->  | V71: -8.494679351 | W71: 21.42794261 | X71: 7.488272887
A72: =$S$10+14 -> 14 | C72: =C54 ->  | V72: -9.167921953 | W72: 21.4616672 | X72: 18.5264072
A73: =$S$10+13 -> 13 | C73: =C55 ->  | V73: 7.945776797 | W73: 22.12299024 | X73: 6.989519146
A74: =$S$10+14 -> 14 | C74: =C56 ->  | V74: -0.4831337953 | W74: 22.38148174 | X74: 2.50091086
A75: =$S$10+13 -> 13 | G75: =IF(C75<>"",C75-E75*SIN($B$13),"") ->  | H75: =IF(D75<>"",D75-E75*SIN($B$16),"") ->  | K75: =IF(E75<>"",E75*COS(J75),"") ->  | V75: -5.069598538 | W75: 22.43817118 | X75: 4.163778696
A76: =$S$10+14 -> 14 | C76: =C58 -> 9.510565163 | D76: =D58 -> -3.090169944 | E76: =IF(D76<>"",E58+$B$10,"") -> 16.4 | G76: =IF(C76<>"",C76,"") -> 9.510565163 | H76: =IF(D76<>"",E76*SIN($B$16)+D76*COS($B$16),"") -> 12.1304982 | K76: =IF(E76<>"",E76*COS($B$16)-D76*SIN($B$16),"") -> 11.46124616 | V76: 6.985113652 | W76: 22.93768961 | X76: 23.23226415
A77: =$S$10+13 -> 13 | C77: =C59 -> 9.857260809 | D77: 1.683570413 | E77: =IF(D77<>"",E59+$B$10,"") -> 17.34615385 | G77: =IF(C77<>"",C77,"") -> 9.857260809 | H77: =IF(D77<>"",E77*SIN($B$16)+D77*COS($B$16),"") -> 15.50592214 | K77: =IF(E77<>"",E77*COS($B$16)-D77*SIN($B$16),"") -> 7.955491267 | V77: -9.973731497 | W77: 23.21464915 | X77: 14.04514318
A78: =$S$10+14 -> 14 | C78: =C60 -> 7.945776797 | D78: 6.071625078 | E78: 18.29230769 | G78: 7.945776797 | H78: 18.6729592 | K78: 4.774279692 | V78: 4.214011078 | W78: 24.5385013 | X78: 4.978739969
A79: =$S$10+13 -> 13 | C79: =C61 -> 4.214011078 | D79: 9.068743609 | E79: 19.23846154 | G79: 4.214011078 | H79: 21.08847026 | K79: 2.763500515 | V79: -8.494679351 | W79: 24.87797365 | X79: 9.703512341
A80: =$S$10+14 -> 14 | C80: =C62 -> -0.4831337953 | D80: 9.988322268 | E80: 20.18461538 | G80: -0.4831337953 | H80: 22.38148174 | K80: 2.50091086 | V80: -0.4831337953 | W80: 25.83151278 | X80: 4.716150314
A81: =$S$10+13 -> 13 | C81: =C63 -> -5.069598538 | D81: 8.619696669 | E81: 21.13076923 | G81: -5.069598538 | H81: 22.43817118 | K81: 4.163778696 | V81: -5.069598538 | W81: 25.88820222 | X81: 6.37901815
A82: =$S$10+14 -> 14 | C82: =C64 -> -8.494679351 | D82: 5.276402441 | E82: 22.07692308 | G82: -8.494679351 | H82: 21.42794261 | K82: 7.488272887
A83: =$S$10+13 -> 13 | C83: =C65 -> -9.973731497 | D83: 0.7243480016 | E83: 23.02307692 | G83: -9.973731497 | H83: 19.76461811 | K83: 11.82990372
A84: =$S$10+14 -> 14 | C84: =C66 -> -9.167921953 | D84: -3.993645836 | E84: 23.96923077 | G84: -9.167921953 | H84: 18.01163617 | K84: 16.31116775
A85: =$S$10+13 -> 13 | C85: =C67 -> -6.261851975 | D85: -7.796743541 | E85: 24.91538462 | G85: -6.261851975 | H85: 16.75297472 | K85: 20.02257322
A86: =$S$10+14 -> 14 | C86: =C68 -> -1.921267174 | D86: -9.813701261 | E86: 25.86153846 | G86: -1.921267174 | H86: 16.45936882 | K86: 22.23099373
A87: =$S$10+13 -> 13 | C87: =C69 -> 2.859456784 | D87: -9.582458291 | E87: 26.80769231 | G87: 2.859456784 | H87: 17.38047094 | K87: 22.54761858
A88: =$S$10+14 -> 14 | C88: =C70 -> 6.985113652 | D88: -7.155989607 | E88: 27.75384615 | G88: 6.985113652 | H88: 19.48765857 | K88: 21.0170247
A89: =$S$10+13 -> 13 | C89: =C71 -> 
A90: =$S$10+14 -> 14 | C90: =C72 -> 
A91: =$S$10+13 -> 13 | C91: =C73 -> 
A92: =$S$10+14 -> 14 | C92: =C74 -> 
A93: =$S$10+13 -> 13
A94: =$S$10+14 -> 14 | C94: =C76 -> 9.510565163 | D94: =D76 -> -3.090169944 | E94: =IF(D94<>"",E76+$B$10,"") -> 20.5 | G94: =IF(C94<>"",C94,"") -> 9.510565163 | H94: =IF(D94<>"",E94*SIN($B$16)+D94*COS($B$16),"") -> 15.58052924 | K94: =IF(E94<>"",E94*COS($B$16)-D94*SIN($B$16),"") -> 13.67648562
A95: =$S$10+13 -> 13 | C95: =C77 -> 9.857260809 | D95: 1.683570413 | E95: =IF(D95<>"",E77+$B$10,"") -> 21.44615385 | G95: =IF(C95<>"",C95,"") -> 9.857260809 | H95: =IF(D95<>"",E95*SIN($B$16)+D95*COS($B$16),"") -> 18.95595317 | K95: =IF(E95<>"",E95*COS($B$16)-D95*SIN($B$16),"") -> 10.17073072
A96: =$S$10+14 -> 14 | C96: =C78 -> 7.945776797 | D96: 6.071625078 | E96: 22.39230769 | G96: 7.945776797 | H96: 22.12299024 | K96: 6.989519146
A97: =$S$10+13 -> 13 | C97: =C79 -> 4.214011078 | D97: 9.068743609 | E97: 23.33846154 | G97: 4.214011078 | H97: 24.5385013 | K97: 4.978739969
A98: =$S$10+14 -> 14 | C98: =C80 -> -0.4831337953 | D98: 9.988322268 | E98: 24.28461538 | G98: -0.4831337953 | H98: 25.83151278 | K98: 4.716150314
A99: =$S$10+13 -> 13 | C99: =C81 -> -5.069598538 | D99: 8.619696669 | E99: 25.23076923 | G99: -5.069598538 | H99: 25.88820222 | K99: 6.37901815
A100: =$S$10+14 -> 14 | C100: =C82 -> -8.494679351 | D100: 5.276402441 | E100: 26.17692308 | G100: -8.494679351 | H100: 24.87797365 | K100: 9.703512341
A101: =$S$10+13 -> 13 | C101: =C83 -> -9.973731497 | D101: 0.7243480016 | E101: 27.12307692 | G101: -9.973731497 | H101: 23.21464915 | K101: 14.04514318
A102: =$S$10+14 -> 14 | C102: =C84 -> -9.167921953 | D102: -3.993645836 | E102: 28.06923077 | G102: -9.167921953 | H102: 21.4616672 | K102: 18.5264072
A103: =$S$10+13 -> 13 | C103: =C85 -> -6.261851975 | D103: -7.796743541 | E103: 29.01538462 | G103: -6.261851975 | H103: 20.20300575 | K103: 22.23781268
A104: =$S$10+14 -> 14 | C104: =C86 -> -1.921267174 | D104: -9.813701261 | E104: 29.96153846 | G104: -1.921267174 | H104: 19.90939985 | K104: 24.44623318
A105: =$S$10+13 -> 13 | C105: =C87 -> 2.859456784 | D105: -9.582458291 | E105: 30.90769231 | G105: 2.859456784 | H105: 20.83050197 | K105: 24.76285804
A106: =$S$10+14 -> 14 | C106: =C88 -> 6.985113652 | D106: -7.155989607 | E106: 31.85384615 | G106: 6.985113652 | H106: 22.93768961 | K106: 23.23226415
A107: =$S$10+13 -> 13 | C107: =C89 -> 
A108: =$S$10+14 -> 14 | C108: =C90 -> 
A109: =$S$10+13 -> 13 | C109: =C91 -> 
A110: =$S$10+14 -> 14 | C110: =C92 -> 
A111: =$S$10+13 -> 13
A112: =$S$10+14 -> 14
A113: =$S$10+13 -> 13
A114: =$S$10+14 -> 14
A115: =$S$10+13 -> 13
A116: =$S$10+14 -> 14
A117: =$S$10+13 -> 13
A118: =$S$10+14 -> 14
A119: =$S$10+13 -> 13
A120: =$S$10+14 -> 14
A121: =$S$10+13 -> 13
A122: =$S$10+14 -> 14
A123: =$S$10+13 -> 13
A124: =$S$10+14 -> 14
A125: =$S$10+13 -> 13
A126: =$S$10+14 -> 14
A127: =$S$10+13 -> 13
A128: =$S$10+14 -> 14
A129: =$S$10+13 -> 13
A130: =$S$10+14 -> 14
A131: =$S$10+13 -> 13
A132: =$S$10+14 -> 14
A133: =$S$10+13 -> 13
A134: =$S$10+14 -> 14
A135: =$S$10+13 -> 13
A136: =$S$10+14 -> 14
A137: =$S$10+13 -> 13
A138: =$S$10+14 -> 14
A139: =$S$10+13 -> 13
A140: =$S$10+14 -> 14
A141: =$S$10+13 -> 13
A142: =$S$10+14 -> 14
A143: =$S$10+13 -> 13
A144: =$S$10+14 -> 14
A145: =$S$10+13 -> 13
A146: =$S$10+14 -> 14
A147: =$S$10+13 -> 13
A148: =$S$10+14 -> 14
A149: =$S$10+13 -> 13
A150: =$S$10+14 -> 14
A151: =$S$10+13 -> 13
A152: =$S$10+14 -> 14
A153: =$S$10+13 -> 13
A154: =$S$10+14 -> 14
A155: =$S$10+13 -> 13
A156: =$S$10+14 -> 14
A157: =$S$10+13 -> 13
A158: =$S$10+14 -> 14
A159: =$S$10+13 -> 13
A160: =$S$10+14 -> 14
A161: =$S$10+13 -> 13
A162: =$S$10+14 -> 14
A163: =$S$10+13 -> 13
A164: =$S$10+14 -> 14
A165: =$S$10+13 -> 13
A166: =$S$10+14 -> 14
A167: =$S$10+13 -> 13
A168: =$S$10+14 -> 14
A169: =$S$10+13 -> 13
A170: =$S$10+14 -> 14
A171: =$S$10+13 -> 13
A172: =$S$10+14 -> 14
A173: =$S$10+13 -> 13
A174: =$S$10+14 -> 14
A175: =$S$10+13 -> 13
A176: =$S$10+14 -> 14
A177: =$S$10+13 -> 13
A178: =$S$10+14 -> 14
A179: =$S$10+13 -> 13
A180: =$S$10+14 -> 14
A181: =$S$10+13 -> 13
A182: =$S$10+14 -> 14
A183: =$S$10+13 -> 13
A184: =$S$10+14 -> 14
A185: =$S$10+13 -> 13
A186: =$S$10+14 -> 14
A187: =$S$10+13 -> 13
A188: =$S$10+14 -> 14
A189: =$S$10+13 -> 13
A190: =$S$10+14 -> 14
A191: =$S$10+13 -> 13
A192: =$S$10+14 -> 14
A193: =$S$10+13 -> 13
A194: =$S$10+14 -> 14
A195: =$S$10+13 -> 13
A196: =$S$10+14 -> 14
A197: =$S$10+13 -> 13
A198: =$S$10+14 -> 14
A199: =$S$10+13 -> 13
A200: =$S$10+14 -> 14
... 122 more rows
